[Event "Titled Tuesday Blitz April 11 Early 2023"]
[White "Siva Mahadevan"]
[Black "Grigoriants, Sergey"]
[WhiteFideId "25043153"]
[BlackFideId "4130804"]
[WhiteElo "2249"]
[BlackElo "2502"]
[Result "1-0"]
[Round "10"]
[TimeControl "180+2"]
[Date "2023.04.11"]
[WhiteClock "0:00:14"]
[BlackClock "0:00:03"]

1. e4 {[%clk 0:03:00]}  c6 {[%clk 0:02:55]} 2. d4 {[%clk 0:02:59]}  d5 {[%clk 0:02:56]} 3. e5 {[%clk 0:02:59]}  Bf5 {[%clk 0:02:56]} 4. c4 {[%clk 0:03:00]}  e6 {[%clk 0:02:54]} 5. Nc3 {[%clk 0:03:01]}  Ne7 {[%clk 0:02:39]} 6. Nge2 {[%clk 0:03:00]}  dxc4 {[%clk 0:02:26]} 7. Ng3 {[%clk 0:03:00]}  b5 {[%clk 0:02:26]} 8. a4 {[%clk 0:02:59]}  b4 {[%clk 0:02:20]} 9. Nce4 {[%clk 0:02:59]}  Bxe4 {[%clk 0:02:18]} 10. Nxe4 {[%clk 0:03:00]}  Nf5 {[%clk 0:02:18]} 11. Bxc4 {[%clk 0:03:00]}  Qxd4 {[%clk 0:02:17]} 12. Qxd4 {[%clk 0:03:00]}  Nxd4 {[%clk 0:02:17]} 13. O-O {[%clk 0:03:01]}  c5 {[%clk 0:02:09]} 14. Be3 {[%clk 0:02:55]}  Nbc6 {[%clk 0:02:06]} 15. Bb5 {[%clk 0:02:47]}  a6 {[%clk 0:02:06]} 16. Bxd4 {[%clk 0:02:03]}  axb5 {[%clk 0:02:03]} 17. Bxc5 {[%clk 0:01:38]}  bxa4 {[%clk 0:01:55]} 18. Nd6+ {[%clk 0:01:36]}  Bxd6 {[%clk 0:01:54]} 19. Bxd6 {[%clk 0:01:37]}  Ra6 {[%clk 0:01:25]} 20. Rfc1 {[%clk 0:01:30]}  Kd7 {[%clk 0:01:16]} 21. Rc4 {[%clk 0:01:30]}  Rc8 {[%clk 0:01:04]} 22. Rd1 {[%clk 0:01:18]}  Ke8 {[%clk 0:00:58]} 23. Bxb4 {[%clk 0:01:17]}  Ne7 {[%clk 0:00:51]} 24. Rxc8+ {[%clk 0:00:59]}  Nxc8 {[%clk 0:00:52]} 25. f4 {[%clk 0:00:53]}  Rb6 {[%clk 0:00:50]} 26. Ba3 {[%clk 0:00:52]}  Ne7 {[%clk 0:00:47]} 27. Rd4 {[%clk 0:00:50]}  Ra6 {[%clk 0:00:46]} 28. Rb4 {[%clk 0:00:50]}  Nd5 {[%clk 0:00:20]} 29. Rb8+ {[%clk 0:00:50]}  Kd7 {[%clk 0:00:21]} 30. Rf8 {[%clk 0:00:50]}  f5 {[%clk 0:00:19]} 31. g3 {[%clk 0:00:38]}  Kc6 {[%clk 0:00:17]} 32. Rf7 {[%clk 0:00:38]}  h5 {[%clk 0:00:07]} 33. Rxg7 {[%clk 0:00:37]}  h4 {[%clk 0:00:08]} 34. Rg6 {[%clk 0:00:33]}  Kb5 {[%clk 0:00:07]} 35. Bd6 {[%clk 0:00:33]}  hxg3 {[%clk 0:00:07]} 36. hxg3 {[%clk 0:00:34]}  Ne3 {[%clk 0:00:05]} 37. Rxe6 {[%clk 0:00:34]}  Nc4 {[%clk 0:00:05]} 38. Rf6 {[%clk 0:00:22]}  Nxb2 {[%clk 0:00:05]} 39. Ba3 {[%clk 0:00:18]}  Nc4 {[%clk 0:00:05]} 40. Rxa6 {[%clk 0:00:13]}  Kxa6 {[%clk 0:00:05]} 41. e6 {[%clk 0:00:14]}  Nxa3 {[%clk 0:00:02]} 42. e7 {[%clk 0:00:14]}  Nc2 {[%clk 0:00:03]} 43. e8=Q {[%clk 0:00:14]} 1-0


[Site "https://www.chess.com"]

[Event "Titled Tuesday Blitz April 11 Early 2023"]
[White "Bacallao Alonso, Yusnel"]
[Black "Ibarra Jerez, Jose Carlos"]
[WhiteFideId "3507416"]
[BlackFideId "2226332"]
[WhiteElo "2561"]
[BlackElo "2638"]
[Result "0-1"]
[Round "10"]
[TimeControl "180+2"]
[Date "2023.04.11"]
[WhiteClock "0:00:01"]
[BlackClock "0:00:50"]

1. d4 {[%clk 0:03:00]}  Nf6 {[%clk 0:02:58]} 2. Nf3 {[%clk 0:02:38]}  g6 {[%clk 0:02:58]} 3. Bf4 {[%clk 0:02:31]}  d6 {[%clk 0:02:56]} 4. e3 {[%clk 0:02:31]}  Bg7 {[%clk 0:02:55]} 5. h3 {[%clk 0:02:31]}  O-O {[%clk 0:02:54]} 6. Be2 {[%clk 0:02:31]}  c5 {[%clk 0:02:52]} 7. Nbd2 {[%clk 0:02:23]}  Nc6 {[%clk 0:02:41]} 8. c3 {[%clk 0:02:23]}  Be6 {[%clk 0:02:41]} 9. O-O {[%clk 0:01:15]}  Qb6 {[%clk 0:02:40]} 10. Ng5 {[%clk 0:01:15]}  Bf5 {[%clk 0:02:21]} 11. Nc4 {[%clk 0:01:05]}  Qd8 {[%clk 0:02:20]} 12. Nf3 {[%clk 0:01:00]}  b5 {[%clk 0:02:18]} 13. Ncd2 {[%clk 0:00:59]}  Qb6 {[%clk 0:02:19]} 14. a4 {[%clk 0:00:57]}  b4 {[%clk 0:02:15]} 15. Nc4 {[%clk 0:00:45]}  Qb7 {[%clk 0:02:15]} 16. Nfd2 {[%clk 0:00:27]}  Nd5 {[%clk 0:02:10]} 17. Bf3 {[%clk 0:00:26]}  Nxf4 {[%clk 0:02:07]} 18. exf4 {[%clk 0:00:27]}  bxc3 {[%clk 0:01:54]} 19. bxc3 {[%clk 0:00:26]}  Qc7 {[%clk 0:01:34]} 20. dxc5 {[%clk 0:00:25]}  dxc5 {[%clk 0:01:34]} 21. Nb3 {[%clk 0:00:25]}  Bxc3 {[%clk 0:01:28]} 22. Rc1 {[%clk 0:00:24]}  Rad8 {[%clk 0:01:29]} 23. Rxc3 {[%clk 0:00:17]}  Rxd1 {[%clk 0:01:28]} 24. Rxd1 {[%clk 0:00:18]}  Rd8 {[%clk 0:01:14]} 25. Rdc1 {[%clk 0:00:17]}  Nd4 {[%clk 0:01:13]} 26. Ncd2 {[%clk 0:00:16]}  Qxf4 {[%clk 0:01:10]} 27. Rxc5 {[%clk 0:00:08]}  Bxh3 {[%clk 0:01:02]} 28. R5c4 {[%clk 0:00:03]}  Be6 {[%clk 0:01:00]} 29. Rxd4 {[%clk 0:00:02]}  Rxd4 {[%clk 0:00:59]} 30. Nxd4 {[%clk 0:00:02]}  Qxd4 {[%clk 0:00:56]} 31. Ne4 {[%clk 0:00:02]}  Qxa4 {[%clk 0:00:51]} 32. Re1 {[%clk 0:00:01]}  Qb4 {[%clk 0:00:50]} 0-1


[Site "https://www.chess.com"]

[Event "Titled Tuesday Blitz April 11 Early 2023"]
[White "Vysochin, Spartak"]
[Black "Svane, Rasmus"]
[WhiteFideId "14103516"]
[BlackFideId "4657101"]
[WhiteElo "2367"]
[BlackElo "2597"]
[Result "0-1"]
[Round "10"]
[TimeControl "180+2"]
[Date "2023.04.11"]
[WhiteClock "0:00:02"]
[BlackClock "0:00:03"]

1. e4 {[%clk 0:03:00]}  c6 {[%clk 0:03:00]} 2. d4 {[%clk 0:03:00]}  d5 {[%clk 0:03:00]} 3. exd5 {[%clk 0:03:00]}  cxd5 {[%clk 0:03:01]} 4. Bd3 {[%clk 0:03:00]}  Nc6 {[%clk 0:03:02]} 5. c3 {[%clk 0:03:01]}  Nf6 {[%clk 0:03:03]} 6. h3 {[%clk 0:03:00]}  g6 {[%clk 0:03:02]} 7. Bf4 {[%clk 0:02:59]}  Bf5 {[%clk 0:03:03]} 8. Be2 {[%clk 0:02:59]}  Bg7 {[%clk 0:03:03]} 9. Nf3 {[%clk 0:03:00]}  O-O {[%clk 0:03:00]} 10. O-O {[%clk 0:03:00]}  Re8 {[%clk 0:02:57]} 11. Nbd2 {[%clk 0:03:00]}  Nd7 {[%clk 0:02:56]} 12. Re1 {[%clk 0:02:58]}  h6 {[%clk 0:02:38]} 13. Bf1 {[%clk 0:02:46]}  g5 {[%clk 0:02:37]} 14. Bg3 {[%clk 0:02:44]}  e6 {[%clk 0:02:37]} 15. Nb3 {[%clk 0:02:39]}  Rc8 {[%clk 0:02:34]} 16. Nc1 {[%clk 0:02:38]}  Nb6 {[%clk 0:02:32]} 17. Bd3 {[%clk 0:02:38]}  Qf6 {[%clk 0:02:30]} 18. Be5 {[%clk 0:02:29]}  Qg6 {[%clk 0:02:30]} 19. Bxg7 {[%clk 0:02:28]}  Kxg7 {[%clk 0:02:29]} 20. Bxf5 {[%clk 0:02:28]}  Qxf5 {[%clk 0:02:25]} 21. Nd3 {[%clk 0:02:28]}  Nc4 {[%clk 0:02:24]} 22. Qe2 {[%clk 0:02:25]}  Re7 {[%clk 0:02:21]} 23. b3 {[%clk 0:02:18]}  Nd6 {[%clk 0:02:21]} 24. Rac1 {[%clk 0:02:13]}  Ne4 {[%clk 0:01:58]} 25. c4 {[%clk 0:02:12]}  Nf6 {[%clk 0:01:53]} 26. c5 {[%clk 0:02:02]}  a5 {[%clk 0:01:46]} 27. a3 {[%clk 0:02:01]}  Ne4 {[%clk 0:01:46]} 28. b4 {[%clk 0:01:57]}  Qf6 {[%clk 0:01:45]} 29. Qe3 {[%clk 0:01:52]}  axb4 {[%clk 0:01:41]} 30. axb4 {[%clk 0:01:51]}  Na7 {[%clk 0:01:41]} 31. Nfe5 {[%clk 0:01:47]}  Nb5 {[%clk 0:01:38]} 32. Ng4 {[%clk 0:01:39]}  Qf5 {[%clk 0:01:35]} 33. f3 {[%clk 0:01:34]}  Ng3 {[%clk 0:01:24]} 34. f4 {[%clk 0:01:33]}  Ne4 {[%clk 0:01:19]} 35. Rf1 {[%clk 0:01:33]}  f6 {[%clk 0:01:09]} 36. fxg5 {[%clk 0:01:24]}  Qxg5 {[%clk 0:01:10]} 37. Nf4 {[%clk 0:01:23]}  Ra8 {[%clk 0:01:11]} 38. Ra1 {[%clk 0:01:03]}  Rxa1 {[%clk 0:01:10]} 39. Rxa1 {[%clk 0:01:04]}  Nxd4 {[%clk 0:01:10]} 40. Qxd4 {[%clk 0:00:58]}  Qxf4 {[%clk 0:01:10]} 41. Rf1 {[%clk 0:00:58]}  Qg5 {[%clk 0:00:58]} 42. b5 {[%clk 0:00:58]}  Rc7 {[%clk 0:00:52]} 43. c6 {[%clk 0:00:43]}  bxc6 {[%clk 0:00:46]} 44. Qb6 {[%clk 0:00:40]}  Rf7 {[%clk 0:00:31]} 45. bxc6 {[%clk 0:00:40]}  h5 {[%clk 0:00:24]} 46. c7 {[%clk 0:00:24]}  Rf8 {[%clk 0:00:24]} 47. Nh2 {[%clk 0:00:17]}  Qe5 {[%clk 0:00:17]} 48. Rc1 {[%clk 0:00:12]}  Rc8 {[%clk 0:00:07]} 49. Nf3 {[%clk 0:00:13]}  Qd6 {[%clk 0:00:06]} 50. Qb7 {[%clk 0:00:12]}  Qd7 {[%clk 0:00:07]} 51. Nd4 {[%clk 0:00:10]}  Nd6 {[%clk 0:00:06]} 52. Qb6 {[%clk 0:00:08]}  Kf7 {[%clk 0:00:07]} 53. Rc6 {[%clk 0:00:06]}  Nc4 {[%clk 0:00:06]} 54. Qc5 {[%clk 0:00:06]}  Ne5 {[%clk 0:00:06]} 55. Rxe6 {[%clk 0:00:03]}  Rxc7 {[%clk 0:00:07]} 56. Qb6 {[%clk 0:00:03]}  Qd8 {[%clk 0:00:04]} 57. Kh2 {[%clk 0:00:02]}  Nc4 {[%clk 0:00:03]} 58. Qa6 {[%clk 0:00:01]}  Re7 {[%clk 0:00:03]} 59. Rxe7+ {[%clk 0:00:01]}  Qxe7 {[%clk 0:00:03]} 60. Qa1 {[%clk 0:00:01]}  Ne5 {[%clk 0:00:04]} 61. Kh1 {[%clk 0:00:01]}  Ng6 {[%clk 0:00:04]} 62. Qa2 {[%clk 0:00:01]}  Qe4 {[%clk 0:00:04]} 63. Qa7+ {[%clk 0:00:01]}  Ne7 {[%clk 0:00:04]} 64. Qc5 {[%clk 0:00:01]}  h4 {[%clk 0:00:05]} 65. Nf3 {[%clk 0:00:01]}  Nf5 {[%clk 0:00:04]} 66. Qf2 {[%clk 0:00:01]}  Kg6 {[%clk 0:00:04]} 67. Kh2 {[%clk 0:00:02]}  d4 {[%clk 0:00:04]} 68. Kh1 {[%clk 0:00:02]}  d3 {[%clk 0:00:05]} 69. Kh2 {[%clk 0:00:02]}  Qf4+ {[%clk 0:00:05]} 70. Kg1 {[%clk 0:00:02]}  Kg7 {[%clk 0:00:03]} 0-1


[Site "https://www.chess.com"]

[Event "Titled Tuesday Blitz April 11 Early 2023"]
[White "Indjic, Aleksandar"]
[Black "Petrov, Martin"]
[WhiteFideId "911925"]
[BlackFideId "2911086"]
[WhiteElo "2614"]
[BlackElo "2430"]
[Result "1-0"]
[Round "10"]
[TimeControl "180+2"]
[Date "2023.04.11"]
[WhiteClock "0:02:50"]
[BlackClock "0:00:21"]

1. d4 {[%clk 0:03:00]}  Nf6 {[%clk 0:02:59]} 2. c4 {[%clk 0:03:01]}  e6 {[%clk 0:02:59]} 3. Nc3 {[%clk 0:03:01]}  Bb4 {[%clk 0:02:58]} 4. e3 {[%clk 0:03:01]}  O-O {[%clk 0:02:58]} 5. Bd3 {[%clk 0:03:02]}  d5 {[%clk 0:02:58]} 6. a3 {[%clk 0:03:02]}  Bxc3+ {[%clk 0:02:54]} 7. bxc3 {[%clk 0:03:03]}  b6 {[%clk 0:02:47]} 8. cxd5 {[%clk 0:03:02]}  exd5 {[%clk 0:02:47]} 9. Ne2 {[%clk 0:03:02]}  c5 {[%clk 0:02:44]} 10. O-O {[%clk 0:03:01]}  Ba6 {[%clk 0:02:43]} 11. f3 {[%clk 0:03:00]}  Re8 {[%clk 0:02:40]} 12. Ng3 {[%clk 0:02:56]}  Bxd3 {[%clk 0:02:37]} 13. Qxd3 {[%clk 0:02:57]}  Nc6 {[%clk 0:02:37]} 14. Bb2 {[%clk 0:02:56]}  h5 {[%clk 0:02:34]} 15. e4 {[%clk 0:02:54]}  h4 {[%clk 0:02:22]} 16. Nf5 {[%clk 0:02:54]}  dxe4 {[%clk 0:02:21]} 17. fxe4 {[%clk 0:02:54]}  Rxe4 {[%clk 0:02:12]} 18. Nxg7 {[%clk 0:02:54]}  Ne5 {[%clk 0:00:52]} 19. Qc2 {[%clk 0:02:52]}  Kxg7 {[%clk 0:00:49]} 20. dxe5 {[%clk 0:02:51]}  Rxe5 {[%clk 0:00:35]} 21. c4 {[%clk 0:02:51]}  Re6 {[%clk 0:00:34]} 22. Rxf6 {[%clk 0:02:50]}  Rxf6 {[%clk 0:00:21]} 23. Rf1 {[%clk 0:02:50]} 1-0


[Site "https://www.chess.com"]

[Event "Titled Tuesday Blitz April 11 Early 2023"]
[White "EREBUNI91"]
[Black "Makarian, Rudik"]
[BlackFideId "44105681"]
[WhiteElo "2675"]
[BlackElo "2430"]
[Result "0-1"]
[Round "10"]
[TimeControl "180+2"]
[Date "2023.04.11"]
[WhiteClock "0:00:14"]
[BlackClock "0:00:48"]

1. e4 {[%clk 0:03:00]}  c5 {[%clk 0:03:00]} 2. Nf3 {[%clk 0:03:00]}  Nc6 {[%clk 0:03:00]} 3. Bb5 {[%clk 0:03:00]}  e6 {[%clk 0:03:01]} 4. O-O {[%clk 0:02:57]}  Nge7 {[%clk 0:03:00]} 5. Re1 {[%clk 0:02:56]}  a6 {[%clk 0:03:00]} 6. Bf1 {[%clk 0:02:56]}  b6 {[%clk 0:03:01]} 7. c3 {[%clk 0:02:55]}  d5 {[%clk 0:03:01]} 8. exd5 {[%clk 0:02:54]}  Nxd5 {[%clk 0:03:02]} 9. d4 {[%clk 0:02:54]}  cxd4 {[%clk 0:03:03]} 10. Nxd4 {[%clk 0:02:54]}  Bb7 {[%clk 0:03:04]} 11. Nxc6 {[%clk 0:02:31]}  Bxc6 {[%clk 0:03:05]} 12. Nd2 {[%clk 0:02:31]}  Qc7 {[%clk 0:03:04]} 13. Nf3 {[%clk 0:02:31]}  Bd6 {[%clk 0:02:58]} 14. h3 {[%clk 0:02:09]}  O-O {[%clk 0:02:57]} 15. Qc2 {[%clk 0:02:00]}  h6 {[%clk 0:02:57]} 16. b3 {[%clk 0:01:55]}  Bb7 {[%clk 0:02:50]} 17. c4 {[%clk 0:01:53]}  Nf4 {[%clk 0:02:47]} 18. Bxf4 {[%clk 0:01:50]}  Bxf4 {[%clk 0:02:48]} 19. Be2 {[%clk 0:01:48]}  Rfd8 {[%clk 0:02:48]} 20. Rad1 {[%clk 0:01:48]}  a5 {[%clk 0:02:46]} 21. Rxd8+ {[%clk 0:01:47]}  Rxd8 {[%clk 0:02:47]} 22. Rd1 {[%clk 0:01:48]}  g6 {[%clk 0:02:46]} 23. Rxd8+ {[%clk 0:01:45]}  Qxd8 {[%clk 0:02:47]} 24. Qd3 {[%clk 0:01:40]}  Qxd3 {[%clk 0:02:42]} 25. Bxd3 {[%clk 0:01:41]}  f5 {[%clk 0:02:41]} 26. Nd4 {[%clk 0:01:23]}  Kf7 {[%clk 0:02:41]} 27. Nb5 {[%clk 0:01:24]}  Ke7 {[%clk 0:02:33]} 28. g3 {[%clk 0:01:22]}  Bd2 {[%clk 0:02:30]} 29. Kf1 {[%clk 0:01:22]}  Bb4 {[%clk 0:02:21]} 30. Ke2 {[%clk 0:01:21]}  Bc5 {[%clk 0:02:22]} 31. f3 {[%clk 0:01:20]}  Kf6 {[%clk 0:01:56]} 32. Nc7 {[%clk 0:00:45]}  Bc6 {[%clk 0:01:51]} 33. f4 {[%clk 0:00:36]}  g5 {[%clk 0:01:49]} 34. Nb5 {[%clk 0:00:32]}  e5 {[%clk 0:01:40]} 35. fxe5+ {[%clk 0:00:28]}  Kxe5 {[%clk 0:01:41]} 36. Nc7 {[%clk 0:00:24]}  f4 {[%clk 0:01:37]} 37. gxf4+ {[%clk 0:00:22]}  Kxf4 {[%clk 0:01:38]} 38. Nd5+ {[%clk 0:00:23]}  Kg3 {[%clk 0:01:36]} 39. Bf5 {[%clk 0:00:24]}  Be8 {[%clk 0:01:15]} 40. Nf6 {[%clk 0:00:23]}  Bf7 {[%clk 0:01:10]} 41. Ne4+ {[%clk 0:00:20]}  Kf4 {[%clk 0:01:10]} 42. Nxc5 {[%clk 0:00:17]}  bxc5 {[%clk 0:01:10]} 43. Bc8 {[%clk 0:00:17]}  h5 {[%clk 0:01:08]} 44. a3 {[%clk 0:00:17]}  Bg6 {[%clk 0:00:51]} 45. Kd2 {[%clk 0:00:16]}  Bf5 {[%clk 0:00:48]} 46. Bb7 {[%clk 0:00:13]}  Bxh3 {[%clk 0:00:48]} 47. Kc3 {[%clk 0:00:13]}  g4 {[%clk 0:00:46]} 48. b4 {[%clk 0:00:13]}  axb4+ {[%clk 0:00:46]} 49. axb4 {[%clk 0:00:14]}  cxb4+ {[%clk 0:00:47]} 50. Kxb4 {[%clk 0:00:15]}  g3 {[%clk 0:00:48]} 51. c5 {[%clk 0:00:15]}  g2 {[%clk 0:00:48]} 52. Bxg2 {[%clk 0:00:14]}  Bxg2 {[%clk 0:00:48]} 53. Kb5 {[%clk 0:00:14]}  h4 {[%clk 0:00:49]} 54. c6 {[%clk 0:00:14]}  Bxc6+ {[%clk 0:00:48]} 0-1


[Site "https://www.chess.com"]

[Event "Titled Tuesday Blitz April 11 Early 2023"]
[White "Gharibyan, Mamikon"]
[Black "Chernobay, Artem"]
[WhiteFideId "13308300"]
[BlackFideId "4167406"]
[WhiteElo "2445"]
[BlackElo "2474"]
[Result "1-0"]
[Round "10"]
[TimeControl "180+2"]
[Date "2023.04.11"]
[WhiteClock "0:00:02"]
[BlackClock "0:00:02"]

1. e4 {[%clk 0:03:00]}  c5 {[%clk 0:02:59]} 2. Nf3 {[%clk 0:02:53]}  e6 {[%clk 0:02:58]} 3. c3 {[%clk 0:02:50]}  d5 {[%clk 0:02:58]} 4. exd5 {[%clk 0:02:49]}  exd5 {[%clk 0:02:58]} 5. d4 {[%clk 0:02:46]}  Nc6 {[%clk 0:02:58]} 6. Bb5 {[%clk 0:02:42]}  Bd6 {[%clk 0:02:58]} 7. O-O {[%clk 0:02:38]}  Ne7 {[%clk 0:02:57]} 8. Be3 {[%clk 0:02:29]}  cxd4 {[%clk 0:02:42]} 9. Nxd4 {[%clk 0:02:26]}  O-O {[%clk 0:02:42]} 10. Nd2 {[%clk 0:02:20]}  Ne5 {[%clk 0:02:36]} 11. h3 {[%clk 0:02:13]}  N7g6 {[%clk 0:02:33]} 12. Qh5 {[%clk 0:02:09]}  a6 {[%clk 0:02:26]} 13. Be2 {[%clk 0:02:00]}  Re8 {[%clk 0:02:03]} 14. Nf5 {[%clk 0:01:51]}  Bb8 {[%clk 0:01:44]} 15. Rad1 {[%clk 0:01:40]}  Qf6 {[%clk 0:01:37]} 16. Nd4 {[%clk 0:01:32]}  Nf4 {[%clk 0:01:16]} 17. Bxf4 {[%clk 0:01:31]}  Qxf4 {[%clk 0:01:17]} 18. g3 {[%clk 0:01:29]}  Qf6 {[%clk 0:01:17]} 19. Rfe1 {[%clk 0:01:24]}  g6 {[%clk 0:00:59]} 20. Qh6 {[%clk 0:01:23]}  Bd7 {[%clk 0:00:53]} 21. N2f3 {[%clk 0:01:19]}  Bc7 {[%clk 0:00:44]} 22. Nxe5 {[%clk 0:01:16]}  Rxe5 {[%clk 0:00:42]} 23. Bf3 {[%clk 0:01:13]}  Rae8 {[%clk 0:00:41]} 24. Rxe5 {[%clk 0:01:12]}  Rxe5 {[%clk 0:00:42]} 25. h4 {[%clk 0:01:07]}  Bb6 {[%clk 0:00:35]} 26. Kg2 {[%clk 0:01:06]}  Bc5 {[%clk 0:00:21]} 27. h5 {[%clk 0:00:54]}  Bf8 {[%clk 0:00:17]} 28. Qd2 {[%clk 0:00:53]}  g5 {[%clk 0:00:13]} 29. Rh1 {[%clk 0:00:24]}  g4 {[%clk 0:00:10]} 30. Bd1 {[%clk 0:00:24]}  Bh6 {[%clk 0:00:10]} 31. Qd3 {[%clk 0:00:22]}  Re8 {[%clk 0:00:07]} 32. Rh4 {[%clk 0:00:21]}  Re4 {[%clk 0:00:07]} 33. Bb3 {[%clk 0:00:19]}  Bg5 {[%clk 0:00:05]} 34. Rh1 {[%clk 0:00:13]}  Re5 {[%clk 0:00:05]} 35. Rd1 {[%clk 0:00:10]}  h6 {[%clk 0:00:04]} 36. Rf1 {[%clk 0:00:06]}  Kg7 {[%clk 0:00:03]} 37. Bc2 {[%clk 0:00:03]}  Kf8 {[%clk 0:00:02]} 38. Qh7 {[%clk 0:00:02]} 1-0


[Site "https://www.chess.com"]

[Event "Titled Tuesday Blitz April 11 Early 2023"]
[White "Belozerov, Andrei"]
[Black "Gabrielian, Artur"]
[WhiteFideId "4120213"]
[BlackFideId "4131002"]
[WhiteElo "2373"]
[BlackElo "2432"]
[Result "1-0"]
[Round "10"]
[TimeControl "180+2"]
[Date "2023.04.11"]
[WhiteClock "0:00:04"]
[BlackClock "0:00:21"]

1. e4 {[%clk 0:03:00]}  c5 {[%clk 0:02:58]} 2. Nf3 {[%clk 0:03:00]}  d6 {[%clk 0:02:58]} 3. Bb5+ {[%clk 0:03:01]}  Nd7 {[%clk 0:02:57]} 4. a4 {[%clk 0:03:00]}  Nf6 {[%clk 0:02:55]} 5. Nc3 {[%clk 0:03:00]}  a6 {[%clk 0:02:48]} 6. Be2 {[%clk 0:03:00]}  Qa5 {[%clk 0:02:42]} 7. O-O {[%clk 0:02:45]}  e6 {[%clk 0:02:42]} 8. d4 {[%clk 0:02:39]}  cxd4 {[%clk 0:02:42]} 9. Nxd4 {[%clk 0:02:39]}  Be7 {[%clk 0:02:42]} 10. Nb3 {[%clk 0:02:38]}  Qc7 {[%clk 0:02:42]} 11. a5 {[%clk 0:02:38]}  O-O {[%clk 0:02:41]} 12. Be3 {[%clk 0:02:36]}  b5 {[%clk 0:02:41]} 13. axb6 {[%clk 0:02:35]}  Nxb6 {[%clk 0:02:41]} 14. Qd4 {[%clk 0:02:26]}  Nfd7 {[%clk 0:02:37]} 15. Rfd1 {[%clk 0:02:21]}  Rd8 {[%clk 0:02:12]} 16. Ra2 {[%clk 0:01:58]}  Nc5 {[%clk 0:02:09]} 17. Rda1 {[%clk 0:01:28]}  Bb7 {[%clk 0:02:08]} 18. Qb4 {[%clk 0:01:15]}  Rab8 {[%clk 0:02:00]} 19. Nxc5 {[%clk 0:01:10]}  dxc5 {[%clk 0:01:59]} 20. Qa5 {[%clk 0:01:10]}  Bd6 {[%clk 0:01:54]} 21. g3 {[%clk 0:01:07]}  Rdc8 {[%clk 0:01:41]} 22. Bxa6 {[%clk 0:00:59]}  Be5 {[%clk 0:01:11]} 23. Bxb7 {[%clk 0:00:54]}  Qxb7 {[%clk 0:01:09]} 24. Rd1 {[%clk 0:00:35]}  Nc4 {[%clk 0:00:54]} 25. Qa6 {[%clk 0:00:31]}  Qxa6 {[%clk 0:00:49]} 26. Rxa6 {[%clk 0:00:31]}  Nxb2 {[%clk 0:00:49]} 27. Rd7 {[%clk 0:00:24]}  Bxc3 {[%clk 0:00:48]} 28. Raa7 {[%clk 0:00:24]}  Nc4 {[%clk 0:00:45]} 29. Bf4 {[%clk 0:00:21]}  Ra8 {[%clk 0:00:41]} 30. Rxf7 {[%clk 0:00:20]}  Rxa7 {[%clk 0:00:41]} 31. Rxa7 {[%clk 0:00:21]}  e5 {[%clk 0:00:36]} 32. Bg5 {[%clk 0:00:20]}  h6 {[%clk 0:00:34]} 33. Be7 {[%clk 0:00:20]}  Bd4 {[%clk 0:00:35]} 34. Kg2 {[%clk 0:00:19]}  Rb8 {[%clk 0:00:34]} 35. c3 {[%clk 0:00:17]}  Bxc3 {[%clk 0:00:32]} 36. Bxc5 {[%clk 0:00:17]}  Nd2 {[%clk 0:00:22]} 37. Ra4 {[%clk 0:00:16]}  Rb2 {[%clk 0:00:17]} 38. h4 {[%clk 0:00:15]}  h5 {[%clk 0:00:17]} 39. Be3 {[%clk 0:00:13]}  Nb3 {[%clk 0:00:14]} 40. Rc4 {[%clk 0:00:12]}  Bd4 {[%clk 0:00:14]} 41. Bxd4 {[%clk 0:00:11]}  Nxd4 {[%clk 0:00:14]} 42. Rc5 {[%clk 0:00:10]}  Rb5 {[%clk 0:00:13]} 43. Rc7 {[%clk 0:00:10]}  Kh7 {[%clk 0:00:13]} 44. Re7 {[%clk 0:00:10]}  Kg6 {[%clk 0:00:13]} 45. Ra7 {[%clk 0:00:08]}  Rb6 {[%clk 0:00:13]} 46. Ra5 {[%clk 0:00:08]}  Nc6 {[%clk 0:00:13]} 47. Rc5 {[%clk 0:00:07]}  Kf6 {[%clk 0:00:13]} 48. Rd5 {[%clk 0:00:08]}  Ne7 {[%clk 0:00:13]} 49. Rc5 {[%clk 0:00:08]}  Rd6 {[%clk 0:00:13]} 50. Ra5 {[%clk 0:00:08]}  Nc6 {[%clk 0:00:13]} 51. Rc5 {[%clk 0:00:08]}  Nd4 {[%clk 0:00:13]} 52. Rc8 {[%clk 0:00:08]}  Ne6 {[%clk 0:00:13]} 53. Rh8 {[%clk 0:00:07]}  g6 {[%clk 0:00:13]} 54. Rc8 {[%clk 0:00:07]}  Rd4 {[%clk 0:00:13]} 55. Kf3 {[%clk 0:00:06]}  Rd3+ {[%clk 0:00:14]} 56. Ke2 {[%clk 0:00:06]}  Ra3 {[%clk 0:00:14]} 57. Rc6 {[%clk 0:00:06]}  Ke7 {[%clk 0:00:15]} 58. Rb6 {[%clk 0:00:06]}  Nd4+ {[%clk 0:00:15]} 59. Kf1 {[%clk 0:00:07]}  Kf7 {[%clk 0:00:16]} 60. Kg2 {[%clk 0:00:07]}  Nc2 {[%clk 0:00:15]} 61. Rb7+ {[%clk 0:00:07]}  Kf6 {[%clk 0:00:14]} 62. Rb6+ {[%clk 0:00:07]}  Kg7 {[%clk 0:00:15]} 63. Rb7+ {[%clk 0:00:07]}  Kh6 {[%clk 0:00:15]} 64. Rb5 {[%clk 0:00:07]}  Ne1+ {[%clk 0:00:15]} 65. Kf1 {[%clk 0:00:07]}  Nf3 {[%clk 0:00:16]} 66. Kg2 {[%clk 0:00:06]}  Kg7 {[%clk 0:00:15]} 67. Rb7+ {[%clk 0:00:06]}  Kf6 {[%clk 0:00:16]} 68. Rb6+ {[%clk 0:00:06]}  Kg7 {[%clk 0:00:16]} 69. Rb7+ {[%clk 0:00:07]}  Kf8 {[%clk 0:00:17]} 70. Rb8+ {[%clk 0:00:07]}  Kf7 {[%clk 0:00:17]} 71. Rb7+ {[%clk 0:00:07]}  Ke8 {[%clk 0:00:18]} 72. Rb8+ {[%clk 0:00:07]}  Kd7 {[%clk 0:00:18]} 73. Rb7+ {[%clk 0:00:07]}  Kc6 {[%clk 0:00:18]} 74. Rg7 {[%clk 0:00:07]}  Nd2 {[%clk 0:00:17]} 75. Rxg6+ {[%clk 0:00:06]}  Kc5 {[%clk 0:00:18]} 76. Rf6 {[%clk 0:00:02]}  Nxe4 {[%clk 0:00:17]} 77. Rf5 {[%clk 0:00:03]}  Kd4 {[%clk 0:00:17]} 78. Kf1 {[%clk 0:00:02]}  Nd2+ {[%clk 0:00:17]} 79. Ke2 {[%clk 0:00:01]}  e4 {[%clk 0:00:18]} 80. Kxd2 {[%clk 0:00:01]}  Ra2+ {[%clk 0:00:18]} 81. Ke1 {[%clk 0:00:01]}  Kd3 {[%clk 0:00:18]} 82. Kf1 {[%clk 0:00:01]}  e3 {[%clk 0:00:19]} 83. fxe3 {[%clk 0:00:01]}  Kxe3 {[%clk 0:00:20]} 84. Kg1 {[%clk 0:00:01]}  Ra1+ {[%clk 0:00:19]} 85. Rf1 {[%clk 0:00:01]}  Ra2 {[%clk 0:00:19]} 86. Rf4 {[%clk 0:00:01]}  Rb2 {[%clk 0:00:18]} 87. Rf5 {[%clk 0:00:01]}  Ke4 {[%clk 0:00:18]} 88. Rf4+ {[%clk 0:00:01]}  Ke3 {[%clk 0:00:18]} 89. Rf5 {[%clk 0:00:02]}  Ke4 {[%clk 0:00:18]} 90. Rf2 {[%clk 0:00:02]}  Ke3 {[%clk 0:00:19]} 91. Rxb2 {[%clk 0:00:01]}  Kf3 {[%clk 0:00:19]} 92. Rb5 {[%clk 0:00:02]}  Kg4 {[%clk 0:00:20]} 93. Rg5+ {[%clk 0:00:02]}  Kh3 {[%clk 0:00:20]} 94. Rxh5 {[%clk 0:00:03]}  Kxg3 {[%clk 0:00:20]} 95. Rh8 {[%clk 0:00:03]}  Kg4 {[%clk 0:00:21]} 96. h5 {[%clk 0:00:03]}  Kg5 {[%clk 0:00:21]} 97. Ra8 {[%clk 0:00:04]} 1-0


[Site "https://www.chess.com"]